Workbook

Sheet Enter Alternatives
A1: Costs | B1: Alternative 1 | C1: Alternative 2
A2: ROW | B2: 0 | C2: 0
A3: Design | B3: 0 | C3: 0
A4: Construction | B4: 0 | C4: 0
A5: Total Initial Costs | B5: =SUBTOTAL(109,B2:B4) -> 0 | C5: =SUBTOTAL(109,C2:C4) -> 0
A6: Operations/Maintenance | B6: 0 | C6: 0
A7: Other Annual Costs | B7: 0 | C7: 0
A8: Total Annual Costs | B8: =SUBTOTAL(109,B6:B7) -> 0 | C8: =SUBTOTAL(109,C6:C7) -> 0
A9: Rehabilitation Cost | B9: 0 | C9: 0
A10: Salvage Value | B10: 0 | C10: 0
A11: Lifespan (Years) | B11: 10 | C11: 10
A14: Lifespan Least Common Multiple | B14: =LCM(Lifespan_Range) -> 10
A15: Base Year | B15: 2018
A16: Discount Rate | B16: 0.04
A17: =COUNTA(Lifespan_Range-2) -> 1 | B17: =COUNT(Lifespan_Range) -> 2
A18: Capital Recovery Factor | B18: =((B16*((1+B16)^B14))/(((1+B16)^B14)-1)) -> 0.1232909443
A19: Number of Alternatives | B19: =COUNTA('LCCA Calculation'!1:1)-3 -> 2
A20: Number of Alternatives Sheet 1 | B20: =COUNTA(1:1)-1 -> 2
A30: Do not change cells highlighed in gray

Sheet LCCA Calculation
A1: Discount Factor | B1: Year | C1: Calendar Year | D1: Alternative 1 | E1: Alternative 2
A2: =(1/((1+'Enter Alternatives'!$B$16)^B2)) -> 1 | B2: 0 | C2: =Table2[[#This Row],[Year]]+'Enter Alternatives'!B$15 -> 2018 | D2: =Table2[[#This Row],[Discount Factor]]*(IF(Table2[[#This Row],[Year]]=0,'Enter Alternatives'!B$5,IF(Table2[[#This Row],[Year]]=EndYear,'Enter Alternatives'!B$10+'Enter Alternatives'!B$8,IF(Table2[[#This Row],[Year]]-Table2[[#This Row],[Year]]=MOD(Table2[[#This Row],[Year]],'Enter Alternatives'!B$11),'Enter Alternatives'!B$9-'Enter Alternatives'!B$10+'Enter Alternatives'!B$8,'Enter Alternatives'!B$8)))) -> 0 | E2: =Table2[[#This Row],[Discount Factor]]*(IF(Table2[[#This Row],[Year]]=0,'Enter Alternatives'!C$5,IF(Table2[[#This Row],[Year]]=EndYear,'Enter Alternatives'!C$10+'Enter Alternatives'!C$8,IF(Table2[[#This Row],[Year]]-Table2[[#This Row],[Year]]=MOD(Table2[[#This Row],[Year]],'Enter Alternatives'!C$11),'Enter Alternatives'!C$9-'Enter Alternatives'!C$10+'Enter Alternatives'!C$8,'Enter Alternatives'!C$8)))) -> 0
A3: =(1/((1+'Enter Alternatives'!$B$16)^B3)) -> 0.9615384615 | B3: 1 | C3: =Table2[[#This Row],[Year]]+'Enter Alternatives'!B$15 -> 2019 | D3: =Table2[[#This Row],[Discount Factor]]*(IF(Table2[[#This Row],[Year]]=0,'Enter Alternatives'!B$5,IF(Table2[[#This Row],[Year]]=EndYear,'Enter Alternatives'!B$10+'Enter Alternatives'!B$8,IF(Table2[[#This Row],[Year]]-Table2[[#This Row],[Year]]=MOD(Table2[[#This Row],[Year]],'Enter Alternatives'!B$11),'Enter Alternatives'!B$9-'Enter Alternatives'!B$10+'Enter Alternatives'!B$8,'Enter Alternatives'!B$8)))) -> 0 | E3: =Table2[[#This Row],[Discount Factor]]*(IF(Table2[[#This Row],[Year]]=0,'Enter Alternatives'!C$5,IF(Table2[[#This Row],[Year]]=EndYear,'Enter Alternatives'!C$10+'Enter Alternatives'!C$8,IF(Table2[[#This Row],[Year]]-Table2[[#This Row],[Year]]=MOD(Table2[[#This Row],[Year]],'Enter Alternatives'!C$11),'Enter Alternatives'!C$9-'Enter Alternatives'!C$10+'Enter Alternatives'!C$8,'Enter Alternatives'!C$8)))) -> 0
A4: =(1/((1+'Enter Alternatives'!$B$16)^B4)) -> 0.924556213 | B4: 2 | C4: =Table2[[#This Row],[Year]]+'Enter Alternatives'!B$15 -> 2020 | D4: =Table2[[#This Row],[Discount Factor]]*(IF(Table2[[#This Row],[Year]]=0,'Enter Alternatives'!B$5,IF(Table2[[#This Row],[Year]]=EndYear,'Enter Alternatives'!B$10+'Enter Alternatives'!B$8,IF(Table2[[#This Row],[Year]]-Table2[[#This Row],[Year]]=MOD(Table2[[#This Row],[Year]],'Enter Alternatives'!B$11),'Enter Alternatives'!B$9-'Enter Alternatives'!B$10+'Enter Alternatives'!B$8,'Enter Alternatives'!B$8)))) -> 0 | E4: =Table2[[#This Row],[Discount Factor]]*(IF(Table2[[#This Row],[Year]]=0,'Enter Alternatives'!C$5,IF(Table2[[#This Row],[Year]]=EndYear,'Enter Alternatives'!C$10+'Enter Alternatives'!C$8,IF(Table2[[#This Row],[Year]]-Table2[[#This Row],[Year]]=MOD(Table2[[#This Row],[Year]],'Enter Alternatives'!C$11),'Enter Alternatives'!C$9-'Enter Alternatives'!C$10+'Enter Alternatives'!C$8,'Enter Alternatives'!C$8)))) -> 0
A5: =(1/((1+'Enter Alternatives'!$B$16)^B5)) -> 0.8889963587 | B5: 3 | C5: =Table2[[#This Row],[Year]]+'Enter Alternatives'!B$15 -> 2021 | D5: =Table2[[#This Row],[Discount Factor]]*(IF(Table2[[#This Row],[Year]]=0,'Enter Alternatives'!B$5,IF(Table2[[#This Row],[Year]]=EndYear,'Enter Alternatives'!B$10+'Enter Alternatives'!B$8,IF(Table2[[#This Row],[Year]]-Table2[[#This Row],[Year]]=MOD(Table2[[#This Row],[Year]],'Enter Alternatives'!B$11),'Enter Alternatives'!B$9-'Enter Alternatives'!B$10+'Enter Alternatives'!B$8,'Enter Alternatives'!B$8)))) -> 0 | E5: =Table2[[#This Row],[Discount Factor]]*(IF(Table2[[#This Row],[Year]]=0,'Enter Alternatives'!C$5,IF(Table2[[#This Row],[Year]]=EndYear,'Enter Alternatives'!C$10+'Enter Alternatives'!C$8,IF(Table2[[#This Row],[Year]]-Table2[[#This Row],[Year]]=MOD(Table2[[#This Row],[Year]],'Enter Alternatives'!C$11),'Enter Alternatives'!C$9-'Enter Alternatives'!C$10+'Enter Alternatives'!C$8,'Enter Alternatives'!C$8)))) -> 0
A6: =(1/((1+'Enter Alternatives'!$B$16)^B6)) -> 0.854804191 | B6: 4 | C6: =Table2[[#This Row],[Year]]+'Enter Alternatives'!B$15 -> 2022 | D6: =Table2[[#This Row],[Discount Factor]]*(IF(Table2[[#This Row],[Year]]=0,'Enter Alternatives'!B$5,IF(Table2[[#This Row],[Year]]=EndYear,'Enter Alternatives'!B$10+'Enter Alternatives'!B$8,IF(Table2[[#This Row],[Year]]-Table2[[#This Row],[Year]]=MOD(Table2[[#This Row],[Year]],'Enter Alternatives'!B$11),'Enter Alternatives'!B$9-'Enter Alternatives'!B$10+'Enter Alternatives'!B$8,'Enter Alternatives'!B$8)))) -> 0 | E6: =Table2[[#This Row],[Discount Factor]]*(IF(Table2[[#This Row],[Year]]=0,'Enter Alternatives'!C$5,IF(Table2[[#This Row],[Year]]=EndYear,'Enter Alternatives'!C$10+'Enter Alternatives'!C$8,IF(Table2[[#This Row],[Year]]-Table2[[#This Row],[Year]]=MOD(Table2[[#This Row],[Year]],'Enter Alternatives'!C$11),'Enter Alternatives'!C$9-'Enter Alternatives'!C$10+'Enter Alternatives'!C$8,'Enter Alternatives'!C$8)))) -> 0
A7: =(1/((1+'Enter Alternatives'!$B$16)^B7)) -> 0.8219271068 | B7: 5 | C7: =Table2[[#This Row],[Year]]+'Enter Alternatives'!B$15 -> 2023 | D7: =Table2[[#This Row],[Discount Factor]]*(IF(Table2[[#This Row],[Year]]=0,'Enter Alternatives'!B$5,IF(Table2[[#This Row],[Year]]=EndYear,'Enter Alternatives'!B$10+'Enter Alternatives'!B$8,IF(Table2[[#This Row],[Year]]-Table2[[#This Row],[Year]]=MOD(Table2[[#This Row],[Year]],'Enter Alternatives'!B$11),'Enter Alternatives'!B$9-'Enter Alternatives'!B$10+'Enter Alternatives'!B$8,'Enter Alternatives'!B$8)))) -> 0 | E7: =Table2[[#This Row],[Discount Factor]]*(IF(Table2[[#This Row],[Year]]=0,'Enter Alternatives'!C$5,IF(Table2[[#This Row],[Year]]=EndYear,'Enter Alternatives'!C$10+'Enter Alternatives'!C$8,IF(Table2[[#This Row],[Year]]-Table2[[#This Row],[Year]]=MOD(Table2[[#This Row],[Year]],'Enter Alternatives'!C$11),'Enter Alternatives'!C$9-'Enter Alternatives'!C$10+'Enter Alternatives'!C$8,'Enter Alternatives'!C$8)))) -> 0
A8: =(1/((1+'Enter Alternatives'!$B$16)^B8)) -> 0.7903145257 | B8: 6 | C8: =Table2[[#This Row],[Year]]+'Enter Alternatives'!B$15 -> 2024 | D8: =Table2[[#This Row],[Discount Factor]]*(IF(Table2[[#This Row],[Year]]=0,'Enter Alternatives'!B$5,IF(Table2[[#This Row],[Year]]=EndYear,'Enter Alternatives'!B$10+'Enter Alternatives'!B$8,IF(Table2[[#This Row],[Year]]-Table2[[#This Row],[Year]]=MOD(Table2[[#This Row],[Year]],'Enter Alternatives'!B$11),'Enter Alternatives'!B$9-'Enter Alternatives'!B$10+'Enter Alternatives'!B$8,'Enter Alternatives'!B$8)))) -> 0 | E8: =Table2[[#This Row],[Discount Factor]]*(IF(Table2[[#This Row],[Year]]=0,'Enter Alternatives'!C$5,IF(Table2[[#This Row],[Year]]=EndYear,'Enter Alternatives'!C$10+'Enter Alternatives'!C$8,IF(Table2[[#This Row],[Year]]-Table2[[#This Row],[Year]]=MOD(Table2[[#This Row],[Year]],'Enter Alternatives'!C$11),'Enter Alternatives'!C$9-'Enter Alternatives'!C$10+'Enter Alternatives'!C$8,'Enter Alternatives'!C$8)))) -> 0
A9: =(1/((1+'Enter Alternatives'!$B$16)^B9)) -> 0.7599178132 | B9: 7 | C9: =Table2[[#This Row],[Year]]+'Enter Alternatives'!B$15 -> 2025 | D9: =Table2[[#This Row],[Discount Factor]]*(IF(Table2[[#This Row],[Year]]=0,'Enter Alternatives'!B$5,IF(Table2[[#This Row],[Year]]=EndYear,'Enter Alternatives'!B$10+'Enter Alternatives'!B$8,IF(Table2[[#This Row],[Year]]-Table2[[#This Row],[Year]]=MOD(Table2[[#This Row],[Year]],'Enter Alternatives'!B$11),'Enter Alternatives'!B$9-'Enter Alternatives'!B$10+'Enter Alternatives'!B$8,'Enter Alternatives'!B$8)))) -> 0 | E9: =Table2[[#This Row],[Discount Factor]]*(IF(Table2[[#This Row],[Year]]=0,'Enter Alternatives'!C$5,IF(Table2[[#This Row],[Year]]=EndYear,'Enter Alternatives'!C$10+'Enter Alternatives'!C$8,IF(Table2[[#This Row],[Year]]-Table2[[#This Row],[Year]]=MOD(Table2[[#This Row],[Year]],'Enter Alternatives'!C$11),'Enter Alternatives'!C$9-'Enter Alternatives'!C$10+'Enter Alternatives'!C$8,'Enter Alternatives'!C$8)))) -> 0
A10: =(1/((1+'Enter Alternatives'!$B$16)^B10)) -> 0.730690205 | B10: 8 | C10: =Table2[[#This Row],[Year]]+'Enter Alternatives'!B$15 -> 2026 | D10: =Table2[[#This Row],[Discount Factor]]*(IF(Table2[[#This Row],[Year]]=0,'Enter Alternatives'!B$5,IF(Table2[[#This Row],[Year]]=EndYear,'Enter Alternatives'!B$10+'Enter Alternatives'!B$8,IF(Table2[[#This Row],[Year]]-Table2[[#This Row],[Year]]=MOD(Table2[[#This Row],[Year]],'Enter Alternatives'!B$11),'Enter Alternatives'!B$9-'Enter Alternatives'!B$10+'Enter Alternatives'!B$8,'Enter Alternatives'!B$8)))) -> 0 | E10: =Table2[[#This Row],[Discount Factor]]*(IF(Table2[[#This Row],[Year]]=0,'Enter Alternatives'!C$5,IF(Table2[[#This Row],[Year]]=EndYear,'Enter Alternatives'!C$10+'Enter Alternatives'!C$8,IF(Table2[[#This Row],[Year]]-Table2[[#This Row],[Year]]=MOD(Table2[[#This Row],[Year]],'Enter Alternatives'!C$11),'Enter Alternatives'!C$9-'Enter Alternatives'!C$10+'Enter Alternatives'!C$8,'Enter Alternatives'!C$8)))) -> 0
A11: =(1/((1+'Enter Alternatives'!$B$16)^B11)) -> 0.7025867356 | B11: 9 | C11: =Table2[[#This Row],[Year]]+'Enter Alternatives'!B$15 -> 2027 | D11: =Table2[[#This Row],[Discount Factor]]*(IF(Table2[[#This Row],[Year]]=0,'Enter Alternatives'!B$5,IF(Table2[[#This Row],[Year]]=EndYear,'Enter Alternatives'!B$10+'Enter Alternatives'!B$8,IF(Table2[[#This Row],[Year]]-Table2[[#This Row],[Year]]=MOD(Table2[[#This Row],[Year]],'Enter Alternatives'!B$11),'Enter Alternatives'!B$9-'Enter Alternatives'!B$10+'Enter Alternatives'!B$8,'Enter Alternatives'!B$8)))) -> 0 | E11: =Table2[[#This Row],[Discount Factor]]*(IF(Table2[[#This Row],[Year]]=0,'Enter Alternatives'!C$5,IF(Table2[[#This Row],[Year]]=EndYear,'Enter Alternatives'!C$10+'Enter Alternatives'!C$8,IF(Table2[[#This Row],[Year]]-Table2[[#This Row],[Year]]=MOD(Table2[[#This Row],[Year]],'Enter Alternatives'!C$11),'Enter Alternatives'!C$9-'Enter Alternatives'!C$10+'Enter Alternatives'!C$8,'Enter Alternatives'!C$8)))) -> 0
A12: =(1/((1+'Enter Alternatives'!$B$16)^B12)) -> 0.6755641688 | B12: 10 | C12: =Table2[[#This Row],[Year]]+'Enter Alternatives'!B$15 -> 2028 | D12: =Table2[[#This Row],[Discount Factor]]*(IF(Table2[[#This Row],[Year]]=0,'Enter Alternatives'!B$5,IF(Table2[[#This Row],[Year]]=EndYear,'Enter Alternatives'!B$10+'Enter Alternatives'!B$8,IF(Table2[[#This Row],[Year]]-Table2[[#This Row],[Year]]=MOD(Table2[[#This Row],[Year]],'Enter Alternatives'!B$11),'Enter Alternatives'!B$9-'Enter Alternatives'!B$10+'Enter Alternatives'!B$8,'Enter Alternatives'!B$8)))) -> 0 | E12: =Table2[[#This Row],[Discount Factor]]*(IF(Table2[[#This Row],[Year]]=0,'Enter Alternatives'!C$5,IF(Table2[[#This Row],[Year]]=EndYear,'Enter Alternatives'!C$10+'Enter Alternatives'!C$8,IF(Table2[[#This Row],[Year]]-Table2[[#This Row],[Year]]=MOD(Table2[[#This Row],[Year]],'Enter Alternatives'!C$11),'Enter Alternatives'!C$9-'Enter Alternatives'!C$10+'Enter Alternatives'!C$8,'Enter Alternatives'!C$8)))) -> 0
A13: Total | D13: =SUBTOTAL(109,D2:D12) -> 0 | E13: =SUBTOTAL(109,E2:E12) -> 0

Sheet Summary
A1: Measure | B1: Alternative 1 | C1: Alternative 2
A2: Present Worth | B2: 0 | C2: 0
A3: Equivalent Uniform Annual Cost | B3: 0 | C3: 0

Sheet Ranking
A1: Ranking | B1: Alternative | C1: Present Worth | E1: Ranking | F1: Alternative | G1: Equivalent Uniform Annual Cost
A2: 1 | B2: Alternative 1 | C2: 0 | E2: 1 | F2: Alternative 1 | G2: 0
A3: 2 | B3: Alternative 2 | C3: 0 | E3: 2 | F3: Alternative 2 | G3: 0

Sheet Visuals

Sheet Visuals Data
A1: Year | B1: Alternative 1 | C1: Alternative 2
A2: ='Enter Alternatives'!B15 -> 2018 | B2: =SUM('LCCA Calculation'!D$2:'LCCA Calculation'!D2) -> 0 | C2: =SUM('LCCA Calculation'!E$2:'LCCA Calculation'!E2) -> 0
A3: =A2+1 -> 2019 | B3: =SUM('LCCA Calculation'!D$2:'LCCA Calculation'!D3) -> 0 | C3: =SUM('LCCA Calculation'!E$2:'LCCA Calculation'!E3) -> 0
A4: =A3+1 -> 2020 | B4: =SUM('LCCA Calculation'!D$2:'LCCA Calculation'!D4) -> 0 | C4: =SUM('LCCA Calculation'!E$2:'LCCA Calculation'!E4) -> 0
A5: 2021 | B5: =SUM('LCCA Calculation'!D$2:'LCCA Calculation'!D5) -> 0 | C5: =SUM('LCCA Calculation'!E$2:'LCCA Calculation'!E5) -> 0
A6: 2022 | B6: =SUM('LCCA Calculation'!D$2:'LCCA Calculation'!D6) -> 0 | C6: =SUM('LCCA Calculation'!E$2:'LCCA Calculation'!E6) -> 0
A7: 2023 | B7: =SUM('LCCA Calculation'!D$2:'LCCA Calculation'!D7) -> 0 | C7: =SUM('LCCA Calculation'!E$2:'LCCA Calculation'!E7) -> 0
A8: 2024 | B8: =SUM('LCCA Calculation'!D$2:'LCCA Calculation'!D8) -> 0 | C8: =SUM('LCCA Calculation'!E$2:'LCCA Calculation'!E8) -> 0
A9: 2025 | B9: =SUM('LCCA Calculation'!D$2:'LCCA Calculation'!D9) -> 0 | C9: =SUM('LCCA Calculation'!E$2:'LCCA Calculation'!E9) -> 0
A10: 2026 | B10: =SUM('LCCA Calculation'!D$2:'LCCA Calculation'!D10) -> 0 | C10: =SUM('LCCA Calculation'!E$2:'LCCA Calculation'!E10) -> 0
A11: 2027 | B11: =SUM('LCCA Calculation'!D$2:'LCCA Calculation'!D11) -> 0 | C11: =SUM('LCCA Calculation'!E$2:'LCCA Calculation'!E11) -> 0
A12: 2028 | B12: =SUM('LCCA Calculation'!D$2:'LCCA Calculation'!D12) -> 0 | C12: =SUM('LCCA Calculation'!E$2:'LCCA Calculation'!E12) -> 0
